bitfinex/quotes_ETHUSD_20220215
["timestamp","ask_amount","ask_price","bid_price","bid_amount"]
[1644909568955,0.21157439,3031.9,3031.8,2.29871702]
[1644909569156,0.21157439,3031.9,3031.4,1.64893]
[1644909569357,0.0125791,3031.7,3031.0,3.2099]
[1644909569556,0.82484,3031.5,3030.7,2.8494]
[1644909569760,0.475,3031.4,3030.4,5.0289]
[1644909569959,0.475,3031.4,3030.6,0.5773261]
[1644909570356,0.475,3031.4,3030.7,1.09775998]
[1644909570819,0.475,3031.4,3030.7,1.39775998]
[1644909571022,0.83130421,3031.2,3030.7,1.39775998]
[1644909571224,0.475,3031.1,3030.7,1.39775998]
[1644909571418,1.29972,3031.1,3030.7,1.39775998]
[1644909571721,1.29972,3031.1,3030.9,0.3]
[1644909571926,1.29964,3031.1,3030.9,0.3]
[1644909572118,0.82464,3031.1,3030.9,0.8]
[1644909572318,0.00657421,3031.2,3030.9,0.8]
[1644909572919,0.00657421,3031.2,3031.0,0.82464]
[1644909573419,1.90965883,3031.9,3031.8,0.91553181]
[1644909574020,0.26062883,3031.9,3031.8,0.91553181]
[1644909574643,0.26062883,3031.9,3031.8,1.21553181]
[1644909575247,0.26062883,3031.9,3031.8,0.91553181]
[1644909576645,0.21157439,3031.9,3031.8,0.91553181]
[1644909577047,0.21157439,3031.9,3031.2,2.803446]
[1644909577245,1.03614439,3031.9,3031.3,0.3]
[1644909577445,0.82459,3031.8,3031.3,0.3]
[1644909577846,0.82459,3031.8,3031.5,1.4017417]
[1644909578301,0.00525581,3031.7,3031.5,1.4017417]
[1644909579205,0.82459,3031.8,3031.6,1.08799951]
[1644909579403,0.82459,3031.8,3031.6,2.21246951]
[1644909579404,0.82984581,3031.8,3031.6,2.21246951]
[1644909580405,0.82459,3031.8,3031.6,2.21246951]
[1644909580808,0.82459,3031.8,3031.6,1.38799951]
[1644909581411,0.82459,3031.8,3031.6,1.08799951]
[1644909581608,0.03254033,3031.7,3031.6,1.38799951]
[1644909581954,0.03254033,3031.7,3031.6,1.08799951]
[1644909582555,0.03254033,3031.7,3031.6,1.38799951]
[1644909584759,0.03254033,3031.7,3031.6,1.08799951]
[1644909587900,0.03254033,3031.7,3031.5,0.5771917]
[1644909589297,0.03254033,3031.7,3031.5,1.74399099]
[1644909589549,0.03254033,3031.7,3031.5,2.56856099]
[1644909589753,0.1648,3032.5,3031.6,5.9]
[1644909589951,1.4003696,3032.4,3031.7,9.1]
[1644909590152,1.40023972,3032.7,3031.8,10.6]
[1644909590351,2.2689,3033.3,3032.1,5.0]
[1644909590352,1.21789156,3032.9,3032.1,5.0]
[1644909590557,0.82408,3033.5,3032.1,5.0]
[1644909590558,1.92520999,3033.7,3032.3,0.82407]
[1644909590756,0.4029986,3034.0,3033.0,0.5767089]
[1644909590971,0.4049986,3034.1,3033.1,8.975]
[1644909591153,0.4049986,3034.1,3033.4,5.0]
[1644909591154,0.002,3034.1,3033.4,5.0]
[1644909591352,0.83726982,3034.8,3033.7,5.6]
[1644909591552,1.39954667,3034.7,3033.9,0.82359]
[1644909591751,1.39954667,3034.6,3033.9,1.24859]
[1644909591952,0.83726982,3035.1,3034.0,0.5765069]
[1644909592151,0.83726982,3035.1,3033.8,2.0295207]
[1644909592152,0.83726982,3035.0,3033.8,2.0295207]
[1644909592352,0.83726982,3034.9,3033.8,0.3]
[1644909592552,0.82395,3034.6,3033.8,0.3]
[1644909592753,1.39954667,3034.5,3033.5,6.7843]
[1644909592953,1.39954667,3034.4,3033.6,1.0]
[1644909593206,1.39954667,3034.3,3033.5,3.8]
[1644909593409,1.39954667,3034.2,3033.5,3.8]
[1644909593702,1.39954667,3034.1,3033.3,3.8]
[1644909593905,0.82394,3034.4,3033.8,0.82392]
[1644909593906,1.40610719,3034.0,3033.8,0.82392]
[1644909594102,1.39954667,3033.9,3033.8,0.82392]
[1644909595503,1.39954667,3033.9,3033.2,5.8711]
[1644909595703,1.39954667,3033.9,3033.2,0.82408]
[1644909595906,1.39954667,3033.9,3033.1,0.1647]
[1644909596202,0.82412,3033.8,3033.1,0.1647]
[1644909596404,1.40610719,3033.7,3033.1,0.1647]
[1644909596602,2.22368667,3033.6,3033.1,0.1647]
[1644909596807,1.39954667,3033.5,3033.1,0.1647]
[1644909597047,1.39954667,3033.5,3033.0,1.64811]
[1644909597549,0.00656052,3033.4,3033.0,1.64811]
[1644909598147,0.00656052,3033.4,3033.0,2.1425759]
[1644909598350,0.00656052,3033.4,3033.0,1.64811]
[1644909598551,0.82413,3033.5,3033.0,1.64811]
[1644909598749,0.00656052,3033.4,3033.0,1.64811]
[1644909599756,0.82413,3033.5,3033.0,1.64811]
[1644909599757,1.64822,3033.5,3033.0,1.64811]
[1644909599954,0.00656052,3033.4,3033.0,1.64811]
[1644909600155,0.83071052,3033.4,3033.0,1.64811]
[1644909601014,0.82415,3033.4,3033.0,1.64811]
[1644909601232,0.83071052,3033.4,3033.0,1.64811]
[1644909601421,0.83071052,3033.4,3033.2,0.82406]
[1644909602215,0.82415,3033.4,3033.2,0.82406]
[1644909604956,0.82802249,3033.4,3033.2,0.82406]
[1644909606659,0.04029341,3033.3,3033.2,0.82406]
[1644909608502,0.04029341,3033.3,3033.0,1.64811]
[1644909608699,0.04029341,3033.3,3032.6,1.0]
[1644909608700,0.86450341,3033.3,3032.7,1.64824]
[1644909609004,0.00387249,3033.2,3032.7,1.64824]
[1644909609699,0.00656052,3033.1,3032.7,1.64824]
[1644909610498,0.82422,3033.1,3032.7,1.64824]
[1644909610699,0.00387249,3033.0,3032.7,1.64824]
[1644909610899,0.82812249,3033.0,3032.7,1.64824]
[1644909611699,1.65237249,3033.0,3032.7,1.64824]
[1644909611945,1.65893301,3033.0,3032.7,1.64824]
[1644909612648,1.65786385,3033.0,3032.7,1.64824]
[1644909612845,1.65130333,3033.0,3032.7,1.64824]
[1644909613247,1.65786385,3033.0,3032.7,1.64824]
[1644909614049,1.65130333,3033.0,3032.7,1.64824]
[1644909614548,1.65786385,3033.0,3032.7,1.64824]
[1644909615447,1.65130333,3033.0,3032.7,1.64824]
[1644909615694,1.65786385,3033.0,3032.7,1.64824]
[1644909616598,1.65130333,3033.0,3032.7,1.64824]
[1644909616795,0.03484367,3032.9,3032.8,0.02776805]
[1644909626697,0.02223915,3032.9,3032.4,1.64846]
[1644909626947,1.67079915,3032.9,3032.4,1.64846]
[1644909627345,1.67079915,3032.9,3032.5,0.82428]
[1644909627545,0.00656052,3032.8,3032.5,0.82428]
[1644909628445,1.67079915,3032.9,3032.5,0.82428]
[1644909628647,0.82425,3032.7,3032.5,4.03874262]
[1644909628847,0.00656052,3032.8,3032.7,0.82406]
[1644909629846,1.67048915,3032.9,3032.7,0.82406]
[1644909630047,1.67704967,3032.9,3032.7,0.82406]
[1644909630247,1.68092216,3032.9,3032.7,0.82406]
[1644909630895,1.63043842,3032.9,3032.7,0.82406]
[1644909631498,1.60819927,3032.9,3032.7,0.82406]
[1644909632698,1.60819927,3032.9,3032.6,0.85114585]
[1644909632898,0.82429,3032.8,3032.6,0.02685585]
[1644909633099,2.22460577,3032.8,3032.6,0.02685585]
[1644909633298,0.82429,3032.8,3032.6,0.02685585]
[1644909633898,0.82429,3032.8,3032.6,1.67527585]
[1644909634098,0.8064671,3032.8,3032.6,1.67527585]
[1644909636549,0.84348143,3032.8,3032.6,1.64842]
[1644909638694,1.40028573,3032.7,3032.6,1.64842]
[1644909638894,0.84348143,3032.8,3032.6,1.64842]
[1644909639295,1.40030816,3032.7,3032.6,1.64842]
[1644909639897,1.40030268,3032.7,3032.6,1.64842]
[1644909640394,1.40030268,3032.7,3032.3,0.82434]
[1644909640395,2.22464268,3032.7,3032.3,0.82434]
[1644909640596,2.22459268,3032.6,3032.3,0.82434]
[1644909640796,1.40038173,3032.5,3031.9,0.1648]
[1644909641000,3.5,3032.4,3031.5,0.1648]
[1644909641197,1.87538173,3032.3,3031.2,1.74995174]
[1644909641396,1.87538173,3032.3,3031.2,0.5]
[1644909641397,5.72503793,3032.2,3031.2,0.5]
[1644909641596,1.87538173,3032.1,3031.2,0.5]
[1644909641796,0.82479,3031.9,3031.2,0.5]
[1644909642050,1.87538173,3031.8,3031.2,0.5]
[1644909642250,1.2997126,3031.8,3031.1,0.1648]
[1644909642554,0.82473,3031.6,3031.1,0.1648]
[1644909642952,0.82473,3031.5,3031.1,0.1648]
[1644909643154,3.9657288,3031.5,3031.1,0.1648]
[1644909643354,0.82473,3031.5,3031.1,0.1648]
[1644909643553,0.82442,3031.6,3031.1,0.1648]
[1644909643853,1.6829,3032.4,3031.0,1.24995174]
[1644909643854,3.5,3032.2,3031.0,1.24995174]
[1644909644052,0.82438,3031.9,3031.0,1.24995174]
[1644909644251,0.82438,3031.9,3030.9,2.24995174]
[1644909644451,0.82438,3031.9,3031.1,1.24995174]
[1644909644653,0.82438,3031.9,3031.1,0.8246]
[1644909644654,0.82447,3031.6,3031.1,0.8246]
[1644909645902,2.47358,3031.6,3031.1,0.8246]
[1644909646502,0.82449,3031.5,3031.1,0.8246]
[1644909646702,0.86320255,3031.5,3031.1,0.8246]
[1644909647305,2.51232255,3031.5,3031.1,0.8246]
[1644909648706,0.82454,3031.4,3031.1,0.8246]
[1644909648906,1.64913,3031.4,3031.1,0.8246]
[1644909650155,0.82459,3031.3,3031.1,0.8246]
[1644909656200,0.82459,3031.3,3030.5,9.73012]
[1644909656403,0.82474,3031.1,3030.6,1.03693158]
[1644909656601,2.47413,3031.1,3030.6,1.03693158]
[1644909656802,2.14080202,3031.1,3030.6,1.03693158]
[1644909657053,2.14080202,3031.1,3030.6,1.18090869]
[1644909657254,0.03847967,3031.2,3030.7,0.82474]
[1644909657454,0.86298967,3031.2,3030.7,0.82474]
[1644909657754,0.86301967,3031.2,3030.7,0.82474]
[1644909658356,0.03847967,3031.2,3030.9,0.82455]
[1644909658555,0.82457,3031.1,3030.9,0.82455]
[1644909659457,0.82457,3031.1,3031.0,3.25403225]
[1644909659658,0.86304967,3031.2,3031.0,4.07858225]
[1644909659857,0.86304967,3031.2,3031.1,3.22591324]
[1644909662505,0.03847967,3031.2,3031.1,3.22591324]
[1644909663908,0.03847967,3031.2,3031.1,1.64903]
[1644909666558,1.68749967,3031.4,3031.1,1.64903]
[1644909669205,0.86297967,3031.4,3031.1,2.64903]
[1644909669404,0.86297967,3031.4,3031.1,1.64903]
[1644909670707,1.68752967,3031.4,3031.1,1.64903]
[1644909671308,0.86297967,3031.4,3031.1,1.64903]
[1644909671608,0.02765578,3031.3,3031.1,1.64903]
[1644909671809,0.85218578,3031.3,3031.1,1.64903]
[1644909672460,0.85218578,3031.3,3031.2,3.1600851]
[1644909672658,0.85218578,3031.3,3031.1,1.64903]
[1644909675264,0.85218578,3031.3,3031.1,2.64903]
[1644909675701,0.85218578,3031.3,3031.1,1.64903]
[1644909676606,0.03847967,3031.2,3031.1,1.64903]
[1644909677902,0.03847967,3031.2,3031.1,4.79581423]
[1644909678103,0.03847967,3031.2,3031.1,4.84930043]
[1644909678302,0.03847967,3031.2,3031.1,5.84930043]
[1644909679105,0.03847967,3031.2,3031.1,2.64903]
[1644909679963,0.03847967,3031.2,3031.1,1.64903]
[1644909680260,0.86313637,3031.2,3031.1,1.64903]
[1644909680464,0.03847967,3031.2,3031.1,1.64903]
[1644909681159,0.03847967,3031.2,3031.1,2.1437045]
[1644909681363,0.03847967,3031.2,3031.1,3.1437045]
[1644909681559,1.64895,3031.4,3031.1,3.1437045]
[1644909681560,0.86297967,3031.4,3031.1,2.64903]
[1644909681759,0.86297967,3031.4,3031.1,1.64903]
[1644909681962,0.82448,3031.3,3031.1,1.64903]
[1644909684010,0.82344639,3031.3,3031.1,1.64903]
[1644909684808,0.8246546,3031.2,3031.1,1.64903]
[1644909686510,0.88112681,3031.2,3031.1,1.64903]
[1644909689863,0.05647221,3031.2,3031.1,1.64903]
[1644909690915,0.88114761,3031.2,3031.1,1.64903]
[1644909691513,0.86315507,3031.2,3031.1,1.64903]
[1644909694558,0.86315507,3031.2,3030.7,1.64946]
[1644909694754,2.51265967,3031.2,3031.0,0.82474]
[1644909696156,3.33737447,3031.2,3031.0,0.82474]
[1644909697359,3.33728647,3031.2,3031.0,0.82474]
[1644909701012,3.33730927,3031.2,3031.0,0.82474]
[1644909702654,2.51265967,3031.2,3031.0,0.82474]
[1644909707016,2.51265967,3031.2,3030.5,0.929766]
[1644909707319,0.82465,3031.0,3030.5,0.929766]
[1644909707716,0.82465,3031.0,3030.5,4.07444399]
[1644909707920,0.82465,3031.0,3030.6,0.82465]
[1644909708317,0.82465,3031.0,3030.6,1.3193923]
[1644909708521,0.8246,3030.9,3030.6,1.3193923]
[1644909708718,0.8246,3030.9,3030.6,0.82465]
[1644909709760,0.8246,3030.9,3030.7,0.8246]
[1644909710359,0.82459,3030.8,3030.7,0.8246]
[1644909714032,0.82459,3030.8,3030.7,0.82302973]
[1644909716635,0.86286579,3030.8,3030.7,0.82302973]
[1644909717071,0.86286579,3030.8,3030.5,0.83409212]
[1644909717268,0.82486,3030.7,3030.5,0.00925212]
[1644909717466,1.64966,3030.7,3030.3,0.00497452]
[1644909717969,1.64966,3030.7,3030.5,0.00925218]
[1644909718167,1.64966,3030.7,3030.2,0.56869287]
[1644909718368,1.64966,3030.7,3030.5,0.8248]
[1644909719267,0.82479,3030.6,3030.5,0.8248]
[1644909719970,0.82479,3030.6,3030.5,0.00501449]
[1644909720170,0.82479,3030.6,3030.3,0.00925952]
[1644909720371,0.8249006,3030.5,3030.3,0.00925952]
[1644909720808,1.6497906,3030.5,3030.3,0.00925952]
[1644909721012,0.82489,3030.5,3030.3,0.82485]
[1644909721211,0.82489,3030.5,3030.3,0.82986449]
[1644909722214,0.82481,3030.4,3030.3,0.82986449]
[1644909722812,0.82481,3030.4,3030.3,3.97156595]
[1644909723612,0.82481,3030.4,3030.3,4.97156595]
[1644909724015,0.36972118,3030.4,3030.3,6.64481436]
[1644909724461,0.36972118,3030.4,3030.3,0.82986449]
[1644909724662,0.36972118,3030.4,3030.3,1.82986449]
[1644909726165,0.36972118,3030.4,3030.3,2.0863944]
[1644909726365,0.36972118,3030.4,3030.3,3.0863944]
[1644909726763,0.36972118,3030.4,3030.3,2.0863944]
[1644909726964,0.40779303,3030.4,3030.3,2.0863944]
[1644909727364,0.40779303,3030.4,3030.3,0.82986449]
[1644909729511,0.40779303,3030.4,3030.3,2.08691227]
[1644909729708,0.40779303,3030.4,3030.3,2.08693653]
[1644909730314,0.40779303,3030.4,3030.3,0.82986449]
[1644909732265,0.40779303,3030.4,3030.3,2.08715069]
[1644909732463,0.40779303,3030.4,3030.3,0.82986449]
[1644909733662,0.40779303,3030.4,3030.3,2.12986449]
[1644909733859,0.03807185,3030.4,3030.3,2.12986449]
[1644909736914,0.03807185,3030.4,3030.3,0.82986449]
[1644909737417,0.03807185,3030.4,3030.3,2.08708813]
[1644909738626,3.71899176,3030.4,3030.3,1.26223813]
[1644909738822,3.71899176,3030.4,3030.3,0.00501449]
[1644909738823,0.03807185,3030.4,3030.3,0.00501449]
[1644909739016,0.03807185,3030.4,3030.2,0.00922987]
[1644909739218,0.86283185,3030.4,3030.2,1.26223813]
[1644909739458,0.86283185,3030.4,3030.2,0.00922987]
[1644909739658,0.86283185,3030.4,3030.2,1.66383436]
[1644909739858,0.86283185,3030.4,3030.2,1.65881987]
[1644909740059,0.86283185,3030.4,3030.2,1.66383436]
[1644909740259,0.86283185,3030.4,3030.2,1.65460449]
[1644909740658,2.51244185,3030.4,3030.2,1.65460449]
[1644909744208,5.61033073,3030.4,3030.2,1.65460449]
[1644909744415,5.61033073,3030.4,3030.2,0.00501449]
[1644909744608,2.51244185,3030.4,3030.1,0.83419259]
[1644909744809,2.51244185,3030.4,3030.2,0.00501449]
[1644909744810,0.82495,3030.3,3030.2,0.00501449]
[1644909745009,2.51244185,3030.4,3030.2,0.00501449]
[1644909745416,2.51244185,3030.4,3030.1,0.00924271]
[1644909745611,2.51244185,3030.4,3030.2,0.82492]
[1644909745810,5.61376079,3030.4,3030.2,0.82993449]
[1644909746210,2.51244185,3030.4,3030.2,0.82993449]
[1644909748065,2.51244185,3030.4,3030.2,1.32478829]
[1644909748266,1.85955618,3030.4,3030.2,1.62478829]
[1644909748469,1.85955618,3030.4,3030.2,2.62478829]
[1644909749370,1.85955618,3030.4,3030.2,4.2980367]
[1644909749768,1.85955618,3030.4,3030.2,7.39662407]
[1644909749967,0.86272185,3030.4,3030.3,3.86809577]
[1644909750168,0.86272185,3030.4,3030.3,0.82966449]
[1644909750169,0.03807185,3030.4,3030.3,0.82966449]
[1644909750569,0.03807185,3030.4,3030.3,0.00501449]
[1644909750806,0.03807185,3030.4,3030.1,2.46478004]
[1644909751012,1.68785185,3030.4,3030.3,0.8249]
[1644909751211,1.68785185,3030.4,3030.3,0.82991449]
[1644909751212,0.86300185,3030.4,3030.3,0.82991449]
[1644909759021,0.86300185,3030.4,3030.3,0.8249]
[1644909759222,0.86300185,3030.4,3030.3,0.82991482]
[1644909759422,0.86300185,3030.4,3030.3,2.08565306]
[1644909761971,0.86300185,3030.4,3030.3,0.82991482]
[1644909762775,2.47478,3030.7,3030.4,5.6]
[1644909762973,0.00664702,3031.1,3030.6,2.08203065]
[1644909763173,1.1439,3031.5,3030.6,0.82455]
[1644909763374,1.1439,3031.5,3030.8,0.88806275]
[1644909763375,1.64905,3031.2,3030.8,0.88806275]
[1644909763574,0.00664746,3031.1,3030.8,0.88806275]
[1644909763774,0.00664746,3031.1,3030.8,1.18806275]
[1644909764373,1.64905,3031.2,3030.8,1.18806275]
[1644909764572,0.00664825,3031.1,3030.8,1.18806275]
[1644909764774,0.00664825,3031.1,3030.8,1.68277005]
[1644909764975,0.83116825,3031.1,3030.9,4.17772993]
[1644909765174,0.00664825,3031.1,3031.0,3.26068147]
[1644909765375,0.00664825,3031.1,3031.0,4.26068147]
[1644909765574,2.47361,3031.2,3030.9,0.82452]
[1644909765808,2.48025825,3031.2,3030.9,1.82452]
[1644909766213,0.82462,3031.1,3030.9,2.3192461]
[1644909766611,0.82462,3031.1,3030.9,1.82452]
[1644909766809,1.64926,3031.1,3030.9,0.82452]
[1644909767009,1.64926,3031.1,3030.9,1.82452]
[1644909768210,1.64926,3031.1,3030.9,0.82452]
[1644909769463,1.64926,3031.1,3030.8,0.8248]
[1644909769667,0.82477,3031.0,3030.8,0.8248]
[1644909769864,1.64955,3031.0,3030.8,0.8248]
[1644909771865,1.64955,3031.0,3030.8,0.82]
[1644909772065,1.64955,3031.0,3030.8,0.6805]
[1644909776222,1.64955,3031.0,3030.8,0.62389]
[1644909776423,1.64955,3031.0,3030.8,0.37365]
[1644909776624,1.64955,3031.0,3030.9,3.16972271]
[1644909776825,1.65582822,3031.1,3030.9,4.99428271]
[1644909777063,0.83126822,3031.1,3031.0,3.52326058]
[1644909777263,0.83126822,3031.1,3031.0,4.82326058]
[1644909777562,0.82462,3031.1,3031.0,4.82326058]
[1644909780165,0.82462,3031.1,3031.0,4.90673707]
[1644909781618,0.82462,3031.1,3031.0,4.94883974]
[1644909782622,1.12959825,3031.3,3031.1,5.6]
[1644909782821,1.12959825,3031.3,3031.2,3.15745013]
[1644909783224,1.12959825,3031.3,3031.1,1.619322]
[1644909783422,1.64914,3031.4,3031.2,3.15986646]
[1644909783622,1.64914,3031.4,3031.2,3.45986646]
[1644909784223,1.64914,3031.4,3031.1,1.8140358]
[1644909784464,2.47367,3031.4,3031.1,5.27926226]
[1644909784666,2.47367,3031.4,3031.2,1.64905]
[1644909785668,0.82453,3031.4,3031.2,3.14905]
[1644909785866,0.82453,3031.4,3031.3,0.3]
[1644909786067,2.4737,3031.5,3031.3,5.79127158]
[1644909786266,0.82456,3031.6,3031.3,2.60058357]
[1644909786469,0.82456,3031.6,3031.4,1.0]
[1644909787467,0.82456,3031.6,3031.4,1.4945893]
[1644909787867,0.00663163,3031.7,3031.5,0.8]
[1644909788068,0.00663163,3031.7,3031.5,2.44861]
[1644909788318,0.82431,3031.8,3031.5,2.44861]
[1644909788716,1.65405227,3031.8,3031.5,2.9431923]
[1644909788919,1.65405227,3031.8,3031.6,1.0]
[1644909789316,1.65405227,3031.8,3031.6,0.82431]
[1644909789716,1.64869,3031.8,3031.6,1.82431]
[1644909789916,0.82431,3031.8,3031.6,1.82431]
[1644909790115,0.82431,3031.8,3031.6,2.3189316]
[1644909794065,0.82431,3031.8,3031.6,0.82431]
[1644909794865,0.60738966,3031.8,3031.6,0.82431]
[1644909795066,0.60738966,3031.8,3031.6,1.318999]
[1644909795265,0.60738966,3031.8,3031.6,0.82431]
[1644909796319,0.60738966,3031.8,3031.6,1.3189977]
[1644909796619,2.47863681,3031.9,3031.7,0.04223922]
[1644909796820,2.47863681,3031.9,3031.7,0.86674922]
[1644909796821,2.47309,3031.9,3031.7,0.86674922]
[1644909797019,2.47860849,3031.9,3031.7,0.86674922]
[1644909798020,2.47309,3031.9,3031.7,0.86674922]
[1644909799878,2.47309,3031.9,3031.7,1.36144102]
[1644909803917,2.47309,3031.9,3031.7,0.04223922]
[1644909803918,3.1015009,3031.8,3031.7,0.04223922]
[1644909804312,2.47309,3031.9,3031.7,0.04223922]
[1644909804513,3.12273071,3031.8,3031.7,0.04223922]
[1644909805313,2.47309,3031.9,3031.7,0.04223922]
[1644909805512,2.47861227,3031.9,3031.7,0.04223922]
[1644909806316,2.47861227,3031.9,3031.7,0.82457]
[1644909806517,2.47309,3031.9,3031.7,0.82457]
[1644909811210,0.03490746,3031.8,3031.7,0.82457]
[1644909814762,1.64924,3031.6,3031.0,0.24827649]
[1644909814962,1.64924,3031.6,3031.0,0.08347649]
[1644909814963,3.27088528,3031.5,3031.0,0.08347649]
[1644909815163,1.40097081,3031.4,3031.0,0.08347649]
[1644909815363,3.26659429,3031.3,3031.0,0.08347649]
[1644909815761,0.8247658,3031.3,3031.0,0.08347649]
[1644909815962,4.77887927,3031.2,3031.0,0.08347649]
[1644909816161,4.73865998,3031.2,3031.0,0.08347649]
[1644909816363,3.16678928,3031.1,3031.0,0.08347649]
[1644909816564,3.16678928,3031.1,3030.8,0.00957156]
[1644909817065,3.16678928,3031.1,3030.3,0.00501482]
[1644909817267,4.81654928,3031.1,3030.3,0.00501482]
[1644909817462,4.81821321,3031.1,3030.3,0.00501482]
[1644909817662,4.81821321,3031.1,3030.4,0.8249]
[1644909818315,0.82479,3030.9,3030.4,0.8249]
[1644909818919,0.82479,3030.9,3030.5,0.00501482]
[1644909819318,0.82478,3030.8,3030.6,0.82472]
[1644909825073,0.82479,3030.9,3030.6,1.82472]
[1644909825273,2.53156373,3031.0,3030.7,1.89775148]
[1644909825274,0.88199373,3031.0,3030.7,1.89775148]
[1644909825475,0.88199373,3031.0,3030.8,2.08198065]
[1644909825722,0.87660969,3031.0,3030.9,0.475]
[1644909825922,0.88199399,3031.0,3030.9,0.475]
[1644909826322,0.8302443,3031.0,3030.9,0.475]
[1644909826723,0.8302443,3031.0,3030.9,0.64027083]
[1644909827021,0.82486,3031.0,3030.9,0.64027083]
[1644909827425,0.82486,3031.0,3030.9,0.475]
[1644909828123,0.82486,3031.0,3030.8,0.8245]
[1644909828124,1.64958,3031.0,3030.8,0.8245]
[1644909828721,1.64958,3031.0,3030.8,2.1245]
[1644909829321,1.64958,3031.0,3030.8,1.8245]
[1644909829565,1.64958,3031.0,3030.8,2.1245]
[1644909829969,1.64958,3031.0,3030.8,1.1245]
[1644909830766,1.64958,3031.0,3030.8,0.8245]
[1644909831367,1.70132969,3031.0,3030.8,0.86662326]
[1644909835217,1.70132969,3031.0,3030.8,1.16662326]
[1644909839869,1.70132969,3031.0,3030.8,0.86662326]
[1644909840369,1.70132969,3031.0,3030.8,2.16662326]
[1644909840570,1.70132969,3031.0,3030.8,1.16662326]
[1644909840814,1.70132969,3031.0,3030.8,2.16662326]
[1644909842819,1.70132969,3031.0,3030.8,0.86662326]
[1644909844224,0.87660969,3031.0,3030.8,0.86662326]
[1644909844965,0.87660969,3031.0,3030.8,2.16662326]
[1644909845169,0.87660969,3031.0,3030.8,3.42410391]
[1644909845571,0.87660969,3031.0,3030.8,2.16662326]
[1644909847671,0.87660969,3031.0,3030.8,1.16662326]
[1644909847874,0.87660969,3031.0,3030.8,2.16662326]
[1644909850020,0.87531264,3031.0,3030.8,2.16662326]
[1644909850424,0.87531264,3031.0,3030.8,1.16662326]
[1644909850623,0.87531264,3031.0,3030.8,2.16662326]
[1644909851722,0.87531264,3031.0,3030.8,3.42410391]
[1644909851969,0.87531264,3031.0,3030.8,2.16662326]
[1644909852170,0.87531264,3031.0,3030.8,2.64162326]
[1644909852371,0.87531264,3031.0,3030.8,3.89910391]
[1644909854271,0.87531264,3031.0,3030.9,1.25748065]
[1644909854471,0.87531264,3031.0,3030.9,1.73248065]
[1644909854672,0.87531264,3031.0,3030.9,0.475]
[1644909854872,0.87531264,3031.0,3030.9,2.73248065]
[1644909855474,0.87531264,3031.0,3030.9,1.73248065]
[1644909855714,0.87531264,3031.0,3030.9,0.475]
[1644909856119,0.87531264,3031.0,3030.9,2.73248065]
[1644909856517,0.85859886,3031.0,3030.9,2.73248065]
[1644909856916,0.64645637,3031.0,3030.9,1.475]
[1644909857319,0.83000829,3031.1,3030.9,1.475]
[1644909857320,0.74389627,3031.1,3031.0,5.6]
[1644909857520,0.00389735,3031.8,3031.1,8.07295]
[1644909857719,0.00389735,3032.1,3031.3,1.25399612]
[1644909857918,0.00389735,3032.1,3031.4,5.58951921]
[1644909857919,0.82422,3031.8,3031.4,5.58951921]
[1644909858122,2.47266,3032.6,3031.4,4.39661921]
[1644909858123,0.00389735,3031.7,3031.4,4.39661921]
[1644909858324,0.00389735,3032.0,3031.5,3.26474848]
[1644909858521,2.47266,3032.6,3031.5,3.26474848]
[1644909858522,0.00389735,3032.5,3031.7,0.4945575]
[1644909858723,0.00389735,3032.5,3031.8,5.46540804]
[1644909858923,0.00389735,3032.5,3031.9,1.0]
[1644909859120,1.40065132,3032.4,3032.0,3.20958015]
[1644909859320,0.00389735,3032.3,3032.0,3.50958015]
[1644909859570,1.65260735,3032.3,3032.0,3.50958015]
[1644909859769,1.65260735,3032.3,3032.1,0.82439]
[1644909860172,2.47699735,3032.3,3032.1,0.82439]
[1644909861872,2.47699735,3032.3,3032.1,1.3190394]
[1644909862271,1.40075233,3032.2,3032.1,1.3190394]
[1644909862474,2.47699735,3032.3,3032.1,1.6190394]
[1644909862674,0.82828735,3032.3,3032.1,1.6190394]
[1644909862875,0.82828735,3032.3,3032.2,0.3]
[1644909863075,0.00389735,3032.3,3032.2,1.94858]
[1644909863319,0.00389735,3032.3,3032.2,1.64858]
[1644909863524,1.40457957,3032.3,3032.2,1.94858]
[1644909863716,0.00389735,3032.3,3032.2,1.64858]
[1644909864317,1.4046246,3032.3,3032.2,1.64858]
[1644909864517,2.2288946,3032.3,3032.2,1.64858]
[1644909864718,0.82816735,3032.3,3032.2,1.64858]
[1644909865317,0.82816735,3032.3,3032.2,1.94858]
[1644909867971,0.82816735,3032.3,3032.2,1.64858]
[1644909869372,2.22892058,3032.3,3032.1,0.04180155]
[1644909869572,0.82816735,3032.3,3032.1,0.04180155]
[1644909869772,1.40079721,3032.2,3031.7,2.14891]
[1644909870077,1.40079721,3032.2,3031.8,0.3]
[1644909870078,1.65287735,3032.1,3031.8,0.3]
[1644909870271,1.65287735,3032.1,3031.5,0.1648]
[1644909870272,1.65836338,3032.1,3031.5,0.1648]
[1644909870474,1.65836338,3032.1,3031.8,0.4946938]
[1644909870925,2.2253683,3032.0,3031.2,0.5]
[1644909871129,1.40481898,3031.9,3031.2,0.5]
[1644909871326,0.82456,3031.8,3031.2,0.5]
[1644909871524,0.00389735,3031.7,3031.4,2.1437594]
[1644909872124,0.82441,3031.6,3031.5,0.3]
[1644909872626,0.82441,3031.6,3031.5,4.49955192]
[1644909872827,0.00548603,3031.7,3031.6,0.82443]
[1644909873325,0.00548603,3031.7,3031.6,1.82443]
[1644909873728,0.82845735,3031.8,3031.6,1.82443]
[1644909873929,0.83394355,3031.8,3031.6,1.82443]
[1644909874128,1.65837355,3031.8,3031.6,1.82443]
[1644909874571,1.65837355,3031.8,3031.6,0.82443]
[1644909874976,1.65288735,3031.8,3031.6,0.82443]
[1644909876073,0.0274284,3031.7,3031.6,0.82443]
[1644909876278,0.0274284,3031.7,3031.6,5.47949195]
[1644909876474,0.0274284,3031.7,3031.6,2.31907]
[1644909878317,0.0274284,3031.7,3031.6,5.52775138]
[1644909878522,0.0274284,3031.7,3031.6,2.31907]
[1644909879120,0.0274284,3031.7,3031.6,5.44202501]
[1644909879317,0.0274284,3031.7,3031.6,2.31907]
[1644909880321,0.02629848,3031.7,3031.6,2.31907]
[1644909880721,0.02629848,3031.7,3031.6,1.0]
[1644909880919,0.02629848,3031.7,3031.5,0.3]
[1644909881422,0.82446,3031.6,3031.4,1.0]